[Event "Early-Titled-Tuesday-Blitz-July-09-2024"]
[Site "Chess.com"]
[Date "2024.07.09"]
[Round "10"]
[White "baki83"]
[Black "vi_pranav"]
[Result "0-1"]
[WhiteElo "2817"]
[BlackElo "3008"]
[TimeControl "180+1"]
[EndTime "9:55:25 PDT"]
[Termination "vi_pranav won by checkmate"]

1. e4 {[%clk 0:03:00.9]} 1... e5 {[%clk 0:02:59.9]} 2. Nf3 {[%clk 0:03:01.2]}
2... Nc6 {[%clk 0:03:00.4]} 3. Bc4 {[%clk 0:03:00.9]} 3... Nf6 {[%clk
0:03:00.1]} 4. d3 {[%clk 0:03:01.3]} 4... h6 {[%clk 0:03:00.7]} 5. Nc3 {[%clk
0:03:01.3]} 5... d6 {[%clk 0:03:00.9]} 6. h3 {[%clk 0:03:00.6]} 6... g6 {[%clk
0:02:57.4]} 7. Be3 {[%clk 0:02:58.3]} 7... Bg7 {[%clk 0:02:56.7]} 8. Qd2 {[%clk
0:02:58.8]} 8... Be6 {[%clk 0:02:56]} 9. O-O {[%clk 0:02:44.3]} 9... d5 {[%clk
0:02:31.7]} 10. exd5 {[%clk 0:02:42]} 10... Nxd5 {[%clk 0:02:32.6]} 11. Rfe1
{[%clk 0:02:26]} 11... Nxe3 {[%clk 0:02:32.4]} 12. Bxe6 {[%clk 0:02:25.5]} 12...
Nxg2 {[%clk 0:02:32.5]} 13. Bxf7+ {[%clk 0:02:24]} 13... Kxf7 {[%clk 0:02:33.4]}
14. Kxg2 {[%clk 0:02:24.5]} 14... Rf8 {[%clk 0:02:33.8]} 15. Re4 {[%clk
0:01:48.7]} 15... Kg8 {[%clk 0:02:32.3]} 16. Rae1 {[%clk 0:01:46.8]} 16... Qd7
{[%clk 0:02:32.4]} 17. Rg4 {[%clk 0:01:23.1]} 17... Kh7 {[%clk 0:02:20.7]} 18.
Ne4 {[%clk 0:01:16.7]} 18... Ne7 {[%clk 0:02:00.2]} 19. Rg1 {[%clk 0:01:14.4]}
19... Nd5 {[%clk 0:01:57.5]} 20. Kf1 {[%clk 0:00:39]} 20... Rxf3 {[%clk
0:01:45.7]} 21. Rxg6 {[%clk 0:00:39.1]} 21... Rg8 {[%clk 0:01:43.1]} 22. Ng5+
{[%clk 0:00:25.2]} 22... Kxg6 {[%clk 0:01:26.5]} 23. Nxf3+ {[%clk 0:00:21]}
23... Kh7 {[%clk 0:01:26.6]} 24. Qe2 {[%clk 0:00:21.4]} 24... Qxh3+ {[%clk
0:01:24.8]} 25. Ke1 {[%clk 0:00:21.7]} 25... Qf5 {[%clk 0:01:25.4]} 26. Nh4
{[%clk 0:00:21.6]} 26... Qf4 {[%clk 0:01:25.3]} 27. Qh5 {[%clk 0:00:19.8]} 27...
Qc1+ {[%clk 0:01:24.8]} 28. Ke2 {[%clk 0:00:19.9]} 28... Nf4+ {[%clk 0:01:19.2]}
29. Kf3 {[%clk 0:00:19.3]} 29... Qxg1 {[%clk 0:01:19.9]} 30. Qf5+ {[%clk
0:00:19]} 30... Ng6 {[%clk 0:01:20.6]} 31. Ke2 {[%clk 0:00:17.3]} 31... Rf8
{[%clk 0:01:20]} 32. Qe4 {[%clk 0:00:17.4]} 32... Rxf2+ {[%clk 0:01:19.5]} 33.
Ke3 {[%clk 0:00:17.4]} 33... Qe1# {[%clk 0:01:19.9]} 0-1

[Event "Early-Titled-Tuesday-Blitz-July-09-2024"]
[Site "Chess.com"]
[Date "2024.07.09"]
[Round "10"]
[White "vikber19611"]
[Black "Knightmare1014"]
[Result "0-1"]
[WhiteElo "1744"]
[BlackElo "2249"]
[TimeControl "180+1"]
[EndTime "9:55:30 PDT"]
[Termination "Knightmare1014 won on time"]

1. e4 {[%clk 0:03:00.9]} 1... c5 {[%clk 0:02:59.2]} 2. Nf3 {[%clk 0:02:59.3]}
2... e6 {[%clk 0:02:59.5]} 3. d4 {[%clk 0:02:59]} 3... cxd4 {[%clk 0:02:59.8]}
4. Nxd4 {[%clk 0:02:58.9]} 4... a6 {[%clk 0:03:00.5]} 5. Nc3 {[%clk 0:02:58.1]}
5... Qc7 {[%clk 0:03:00.9]} 6. Be3 {[%clk 0:02:55.9]} 6... Bb4 {[%clk 0:03:00]}
7. Qd3 {[%clk 0:02:43.6]} 7... Nf6 {[%clk 0:02:59]} 8. f3 {[%clk 0:02:35.6]}
8... d5 {[%clk 0:02:57]} 9. e5 {[%clk 0:02:09.7]} 9... Qxe5 {[%clk 0:02:50.9]}
10. O-O-O {[%clk 0:02:08.4]} 10... O-O {[%clk 0:02:47.1]} 11. Be2 {[%clk
0:02:01.8]} 11... Qc7 {[%clk 0:02:42.5]} 12. g4 {[%clk 0:01:51]} 12... b5 {[%clk
0:02:25]} 13. g5 {[%clk 0:01:38.1]} 13... Ne8 {[%clk 0:02:24.6]} 14. h4 {[%clk
0:01:33]} 14... Bxc3 {[%clk 0:02:24.6]} 15. bxc3 {[%clk 0:01:31.6]} 15... Qc4
{[%clk 0:02:23.8]} 16. Qxc4 {[%clk 0:01:20.2]} 16... bxc4 {[%clk 0:02:24.7]} 17.
f4 {[%clk 0:01:18]} 17... Nd6 {[%clk 0:02:23.2]} 18. Bf3 {[%clk 0:01:14.3]}
18... Bd7 {[%clk 0:02:21.5]} 19. Ne2 {[%clk 0:00:42.5]} 19... Nf5 {[%clk
0:02:15.5]} 20. Bc5 {[%clk 0:00:39.7]} 20... Rc8 {[%clk 0:02:14.6]} 21. Ba3
{[%clk 0:00:37.5]} 21... Nc6 {[%clk 0:02:14.6]} 22. Nd4 {[%clk 0:00:20]} 22...
Ncxd4 {[%clk 0:02:11.1]} 23. cxd4 {[%clk 0:00:19.3]} 23... Rab8 {[%clk
0:02:02.3]} 24. c3 {[%clk 0:00:17.8]} 24... Ba4 {[%clk 0:01:58.7]} 25. Rde1
{[%clk 0:00:17.4]} 25... Rb6 {[%clk 0:01:56.1]} 26. Bd1 {[%clk 0:00:14]} 26...
Bxd1 {[%clk 0:01:52.3]} 27. Rxd1 {[%clk 0:00:14]} 27... Rcb8 {[%clk 0:01:52.5]}
28. Kd2 {[%clk 0:00:11.8]} 28... Ng3 {[%clk 0:01:42.7]} 29. Rhg1 {[%clk
0:00:10.3]} 29... Ne4+ {[%clk 0:01:42.8]} 30. Kc2 {[%clk 0:00:10]} 30... Nf2
{[%clk 0:01:35.6]} 31. Rdf1 {[%clk 0:00:08.4]} 31... Nd3 {[%clk 0:01:35.5]} 32.
Rf3 {[%clk 0:00:04.2]} 32... Rb2+ {[%clk 0:01:31.6]} 0-1

[Event "Early-Titled-Tuesday-Blitz-July-09-2024"]
[Site "Chess.com"]
[Date "2024.07.09"]
[Round "10"]
[White "Pachonpower"]
[Black "nitpicker"]
[Result "1-0"]
[WhiteElo "2463"]
[BlackElo "2312"]
[TimeControl "180+1"]
[EndTime "9:55:41 PDT"]
[Termination "Pachonpower won by resignation"]

1. d4 {[%clk 0:03:00.9]} 1... Nf6 {[%clk 0:02:59.4]} 2. Nf3 {[%clk 0:03:01.2]}
2... d5 {[%clk 0:02:58]} 3. e3 {[%clk 0:03:01.4]} 3... g6 {[%clk 0:02:56.6]} 4.
b3 {[%clk 0:03:00.8]} 4... Bg7 {[%clk 0:02:56.4]} 5. Bb2 {[%clk 0:03:01.7]} 5...
O-O {[%clk 0:02:55.8]} 6. Nbd2 {[%clk 0:03:02.6]} 6... Nbd7 {[%clk 0:02:55]} 7.
Be2 {[%clk 0:03:02.7]} 7... b6 {[%clk 0:02:55.1]} 8. O-O {[%clk 0:03:03]} 8...
Bb7 {[%clk 0:02:55.4]} 9. Ne5 {[%clk 0:03:03.7]} 9... Nxe5 {[%clk 0:02:52.7]}
10. dxe5 {[%clk 0:03:04.6]} 10... Nd7 {[%clk 0:02:51.2]} 11. f4 {[%clk
0:03:04.6]} 11... f6 {[%clk 0:02:51.1]} 12. exf6 {[%clk 0:02:57.3]} 12... exf6
{[%clk 0:02:49.1]} 13. Nf3 {[%clk 0:02:56.8]} 13... Qe7 {[%clk 0:02:46.1]} 14.
Qd2 {[%clk 0:02:55.6]} 14... Rfe8 {[%clk 0:02:43.7]} 15. Kf2 {[%clk 0:02:55.4]}
15... Nc5 {[%clk 0:02:41.7]} 16. Bd3 {[%clk 0:02:55.2]} 16... Rad8 {[%clk
0:02:39.5]} 17. Qe2 {[%clk 0:02:46.5]} 17... Ne4+ {[%clk 0:02:23.6]} 18. Kg1
{[%clk 0:02:43.1]} 18... Nd6 {[%clk 0:02:09.4]} 19. Rfe1 {[%clk 0:02:41.4]}
19... Bc8 {[%clk 0:01:59.2]} 20. Nd4 {[%clk 0:02:38.9]} 20... Bd7 {[%clk
0:01:57.3]} 21. a4 {[%clk 0:02:36.6]} 21... a5 {[%clk 0:01:24.9]} 22. Bb5 {[%clk
0:02:34.2]} 22... c5 {[%clk 0:01:13.2]} 23. Nc6 {[%clk 0:02:31.3]} 23... Bxc6
{[%clk 0:00:44.7]} 24. Bxc6 {[%clk 0:02:32.2]} 24... Rf8 {[%clk 0:00:45.1]} 25.
Bxd5+ {[%clk 0:02:31.2]} 25... Kh8 {[%clk 0:00:45.8]} 26. Rad1 {[%clk
0:02:30.8]} 26... Ne4 {[%clk 0:00:44.9]} 27. Qc4 {[%clk 0:02:14.9]} 27... f5
{[%clk 0:00:42.7]} 28. Bxg7+ {[%clk 0:02:14]} 28... Kxg7 {[%clk 0:00:43.5]} 29.
Bxe4 {[%clk 0:02:13.6]} 29... fxe4 {[%clk 0:00:41.5]} 30. g4 {[%clk 0:02:04.4]}
30... h6 {[%clk 0:00:40]} 31. Kg2 {[%clk 0:01:56.2]} 31... Qh4 {[%clk
0:00:35.6]} 32. h3 {[%clk 0:01:53.7]} 32... Qe7 {[%clk 0:00:34.6]} 33. Qb5
{[%clk 0:01:41.4]} 33... Rxd1 {[%clk 0:00:28.7]} 34. Rxd1 {[%clk 0:01:42.3]}
34... Rd8 {[%clk 0:00:28.4]} 35. Re1 {[%clk 0:01:38.5]} 35... Rd2+ {[%clk
0:00:26.8]} 36. Re2 {[%clk 0:01:39]} 36... Rxe2+ {[%clk 0:00:25.6]} 37. Qxe2
{[%clk 0:01:39.9]} 37... Qd6 {[%clk 0:00:24.6]} 38. Kf2 {[%clk 0:01:38.9]} 38...
Kf6 {[%clk 0:00:23.8]} 39. Ke1 {[%clk 0:01:38.7]} 39... Qd5 {[%clk 0:00:23.4]}
40. Qd2 {[%clk 0:01:35.6]} 40... Qc6 {[%clk 0:00:21.3]} 41. Qc3+ {[%clk
0:01:35.1]} 41... Kf7 {[%clk 0:00:20.8]} 42. Qe5 {[%clk 0:01:34.9]} 42... c4
{[%clk 0:00:19.7]} 43. Kd2 {[%clk 0:01:32.1]} 43... cxb3 {[%clk 0:00:19]} 44.
cxb3 {[%clk 0:01:33]} 44... Qd7+ {[%clk 0:00:18.8]} 45. Qd4 {[%clk 0:01:32.2]}
45... Qc6 {[%clk 0:00:18.3]} 46. Qc4+ {[%clk 0:01:28.8]} 46... Qxc4 {[%clk
0:00:17.4]} 47. bxc4 {[%clk 0:01:29.7]} 47... Ke6 {[%clk 0:00:17.6]} 48. Kc3
{[%clk 0:01:30.3]} 48... Kd6 {[%clk 0:00:17.7]} 49. Kd4 {[%clk 0:01:30.8]} 1-0

[Event "Early-Titled-Tuesday-Blitz-July-09-2024"]
[Site "Chess.com"]
[Date "2024.07.09"]
[Round "10"]
[White "malakismayil"]
[Black "Bkmzzzzz"]
[Result "1/2-1/2"]
[WhiteElo "2519"]
[BlackElo "2428"]
[TimeControl "180+1"]
[EndTime "9:55:43 PDT"]
[Termination "Game drawn by repetition"]

1. e4 {[%clk 0:03:00.9]} 1... d6 {[%clk 0:02:57.4]} 2. d4 {[%clk 0:03:00.3]}
2... Nf6 {[%clk 0:02:58.1]} 3. Nc3 {[%clk 0:03:00.5]} 3... e5 {[%clk 0:02:58.8]}
4. dxe5 {[%clk 0:03:00.2]} 4... dxe5 {[%clk 0:02:59.7]} 5. Qxd8+ {[%clk
0:03:00.3]} 5... Kxd8 {[%clk 0:03:00.6]} 6. Bg5 {[%clk 0:03:00.5]} 6... Be6
{[%clk 0:03:01.1]} 7. O-O-O+ {[%clk 0:03:01.1]} 7... Nd7 {[%clk 0:03:01.7]} 8.
f4 {[%clk 0:03:01.4]} 8... exf4 {[%clk 0:03:01.3]} 9. e5 {[%clk 0:03:01.5]} 9...
h6 {[%clk 0:03:01.7]} 10. Bxf4 {[%clk 0:02:58]} 10... Nh5 {[%clk 0:02:57.6]} 11.
Be3 {[%clk 0:02:57.4]} 11... Bb4 {[%clk 0:02:57.4]} 12. Nd5 {[%clk 0:02:53.4]}
12... Ba5 {[%clk 0:02:51.3]} 13. Be2 {[%clk 0:02:49.1]} 13... g6 {[%clk
0:02:51.1]} 14. Bxh5 {[%clk 0:02:48.7]} 14... gxh5 {[%clk 0:02:52]} 15. Nf6
{[%clk 0:02:47.6]} 15... Ke7 {[%clk 0:02:46.9]} 16. Nxd7 {[%clk 0:02:44.7]}
16... Bxd7 {[%clk 0:02:47.3]} 17. Bc5+ {[%clk 0:02:45.4]} 17... Ke6 {[%clk
0:02:47.5]} 18. Nf3 {[%clk 0:02:45]} 18... Bc6 {[%clk 0:02:32.6]} 19. Nd4+
{[%clk 0:02:35.7]} 19... Kxe5 {[%clk 0:02:28.6]} 20. Nxc6+ {[%clk 0:02:34.2]}
20... bxc6 {[%clk 0:02:29.4]} 21. Bd4+ {[%clk 0:02:34.3]} 21... Kf5 {[%clk
0:02:29.5]} 22. Bxh8 {[%clk 0:02:35.1]} 22... Rxh8 {[%clk 0:02:30]} 23. Rhf1+
{[%clk 0:02:34.3]} 23... Kg6 {[%clk 0:02:29.8]} 24. Rd7 {[%clk 0:02:33.3]} 24...
f6 {[%clk 0:02:30]} 25. Re7 {[%clk 0:02:25.4]} 25... Bb6 {[%clk 0:02:23]} 26.
Re6 {[%clk 0:02:22.8]} 26... Bd4 {[%clk 0:02:20.5]} 27. c3 {[%clk 0:02:19.2]}
27... Be5 {[%clk 0:02:20.7]} 28. Rxc6 {[%clk 0:02:18.9]} 28... Rd8 {[%clk
0:02:20.1]} 29. Kc2 {[%clk 0:02:13.7]} 29... Rd5 {[%clk 0:02:17.4]} 30. h3
{[%clk 0:02:10.9]} 30... Kg5 {[%clk 0:02:16.5]} 31. Rc4 {[%clk 0:02:06.2]} 31...
Ra5 {[%clk 0:02:14.9]} 32. a4 {[%clk 0:02:05.4]} 32... Rd5 {[%clk 0:02:14.3]}
33. Rd1 {[%clk 0:02:04.1]} 33... Ra5 {[%clk 0:02:13.4]} 34. Rd7 {[%clk
0:01:51.1]} 34... Kg6 {[%clk 0:02:10.8]} 35. Rd1 {[%clk 0:01:35.8]} 35... Kf5
{[%clk 0:02:10.4]} 36. Ra1 {[%clk 0:01:34.3]} 36... Ra6 {[%clk 0:02:08.9]} 37.
b4 {[%clk 0:01:33]} 37... Rd6 {[%clk 0:02:08.8]} 38. Rd1 {[%clk 0:01:32.2]}
38... Re6 {[%clk 0:02:08.5]} 39. Rf1+ {[%clk 0:01:30.1]} 39... Kg6 {[%clk
0:02:08.5]} 40. Re1 {[%clk 0:01:28.2]} 40... Rd6 {[%clk 0:02:08.5]} 41. Rxc7
{[%clk 0:01:08.9]} 41... Ra6 {[%clk 0:02:05.5]} 42. Rb7 {[%clk 0:00:54.5]} 42...
Rxa4 {[%clk 0:02:03.3]} 43. Kb3 {[%clk 0:00:55]} 43... Ra6 {[%clk 0:02:03.5]}
44. b5 {[%clk 0:00:55.3]} 44... Rd6 {[%clk 0:02:03.8]} 45. Re3 {[%clk
0:00:52.4]} 45... a6 {[%clk 0:01:57.6]} 46. b6 {[%clk 0:00:45.2]} 46... Rc6
{[%clk 0:01:57.3]} 47. Rd3 {[%clk 0:00:43]} 47... Kf5 {[%clk 0:01:56.9]} 48. c4
{[%clk 0:00:31.8]} 48... Ke4 {[%clk 0:01:55.6]} 49. Rdd7 {[%clk 0:00:28]} 49...
Bd4 {[%clk 0:01:54.3]} 50. Re7+ {[%clk 0:00:23.5]} 50... Kd3 {[%clk 0:01:54.5]}
51. Red7 {[%clk 0:00:22.9]} 51... Ke4 {[%clk 0:01:54.6]} 52. Re7+ {[%clk
0:00:20]} 52... Kd3 {[%clk 0:01:54.9]} 53. Red7 {[%clk 0:00:14]} 53... Ke4
{[%clk 0:01:55]} 1/2-1/2

[Event "Early-Titled-Tuesday-Blitz-July-09-2024"]
[Site "Chess.com"]
[Date "2024.07.09"]
[Round "10"]
[White "BashirovKemal"]
[Black "zverr1"]
[Result "1-0"]
[WhiteElo "2681"]
[BlackElo "2543"]
[TimeControl "180+1"]
[EndTime "9:55:44 PDT"]
[Termination "BashirovKemal won on time"]

1. d4 {[%clk 0:03:00.9]} 1... Nf6 {[%clk 0:02:59.8]} 2. Nf3 {[%clk 0:03:01.4]}
2... g6 {[%clk 0:03:00.2]} 3. Nbd2 {[%clk 0:03:00.8]} 3... d5 {[%clk 0:02:59.9]}
4. e3 {[%clk 0:03:01.3]} 4... Bg7 {[%clk 0:02:59.8]} 5. b4 {[%clk 0:03:01.9]}
5... O-O {[%clk 0:03:00.3]} 6. Bb2 {[%clk 0:03:02.5]} 6... a5 {[%clk 0:03:00.4]}
7. b5 {[%clk 0:03:02.8]} 7... c5 {[%clk 0:03:01]} 8. bxc6 {[%clk 0:03:00.1]}
8... Nxc6 {[%clk 0:03:00.4]} 9. Be2 {[%clk 0:03:00.1]} 9... Bf5 {[%clk 0:02:59]}
10. a3 {[%clk 0:02:58.7]} 10... Ne4 {[%clk 0:02:57.7]} 11. O-O {[%clk
0:02:57.3]} 11... a4 {[%clk 0:02:43.6]} 12. Nxe4 {[%clk 0:02:46.8]} 12... Bxe4
{[%clk 0:02:37.9]} 13. Nd2 {[%clk 0:02:40]} 13... Bf5 {[%clk 0:02:35.4]} 14. c4
{[%clk 0:02:37.9]} 14... dxc4 {[%clk 0:02:31.9]} 15. Nxc4 {[%clk 0:02:38.8]}
15... b5 {[%clk 0:02:09.4]} 16. Ne5 {[%clk 0:02:33.3]} 16... Nxe5 {[%clk
0:01:58.8]} 17. dxe5 {[%clk 0:02:34.2]} 17... Qb8 {[%clk 0:01:59.3]} 18. Qd5
{[%clk 0:02:22.2]} 18... b4 {[%clk 0:01:21.7]} 19. axb4 {[%clk 0:02:23.1]} 19...
Qxb4 {[%clk 0:01:22.3]} 20. Ba3 {[%clk 0:02:19.7]} 20... Qe4 {[%clk 0:01:21]}
21. Qxe4 {[%clk 0:02:16.5]} 21... Bxe4 {[%clk 0:01:21.1]} 22. f4 {[%clk
0:02:16.6]} 22... e6 {[%clk 0:01:07.1]} 23. Bxf8 {[%clk 0:02:10]} 23... Bxf8
{[%clk 0:01:08]} 24. Kf2 {[%clk 0:02:10.7]} 24... Ra7 {[%clk 0:01:01.4]} 25.
Rfc1 {[%clk 0:02:06.2]} 25... a3 {[%clk 0:00:59.8]} 26. Rc4 {[%clk 0:02:00.3]}
26... Bd5 {[%clk 0:00:59.3]} 27. Rc8 {[%clk 0:01:59.5]} 27... Kg7 {[%clk
0:00:55.5]} 28. Bf3 {[%clk 0:01:56.8]} 28... Bxf3 {[%clk 0:00:34.9]} 29. Kxf3
{[%clk 0:01:57.7]} 29... Rb7 {[%clk 0:00:33.9]} 30. Rc2 {[%clk 0:01:54.8]} 30...
h5 {[%clk 0:00:33.2]} 31. g3 {[%clk 0:01:52.9]} 31... Rb3 {[%clk 0:00:32.7]} 32.
Raa2 {[%clk 0:01:49.8]} 32... Rb1 {[%clk 0:00:32.2]} 33. Rc8 {[%clk 0:01:45.8]}
33... Rb3 {[%clk 0:00:28.4]} 34. Rac2 {[%clk 0:01:43.5]} 34... Rb5 {[%clk
0:00:16.1]} 35. Ra8 {[%clk 0:01:39.9]} 35... Bc5 {[%clk 0:00:16]} 36. Rc8 {[%clk
0:01:35.8]} 36... Bf8 {[%clk 0:00:14.6]} 37. Rd8 {[%clk 0:01:33]} 37... Ra5
{[%clk 0:00:13.3]} 38. Rcc8 {[%clk 0:01:29.3]} 38... f5 {[%clk 0:00:03.3]} 39.
exf6+ {[%clk 0:01:28.2]} 1-0

[Event "Early-Titled-Tuesday-Blitz-July-09-2024"]
[Site "Chess.com"]
[Date "2024.07.09"]
[Round "10"]
[White "chipmunknau"]
[Black "Antek_Radzimski"]
[Result "1-0"]
[WhiteElo "2714"]
[BlackElo "2584"]
[TimeControl "180+1"]
[EndTime "9:55:50 PDT"]
[Termination "chipmunknau won by resignation"]

1. d4 {[%clk 0:02:32.5]} 1... Nf6 {[%clk 0:02:59.2]} 2. Nf3 {[%clk 0:02:32.1]}
2... g6 {[%clk 0:02:57.6]} 3. g3 {[%clk 0:02:32.4]} 3... Bg7 {[%clk 0:02:58.3]}
4. Bg2 {[%clk 0:02:32.9]} 4... O-O {[%clk 0:02:59.1]} 5. O-O {[%clk 0:02:33.5]}
5... d6 {[%clk 0:02:59.9]} 6. c4 {[%clk 0:02:33.9]} 6... Nc6 {[%clk 0:03:00.7]}
7. Nc3 {[%clk 0:02:34.5]} 7... Bg4 {[%clk 0:03:00.5]} 8. h3 {[%clk 0:02:28.6]}
8... Bxf3 {[%clk 0:02:55.7]} 9. Bxf3 {[%clk 0:02:29.5]} 9... e5 {[%clk
0:02:56.2]} 10. d5 {[%clk 0:02:22.9]} 10... Ne7 {[%clk 0:02:52]} 11. Rb1 {[%clk
0:02:16]} 11... a5 {[%clk 0:02:49]} 12. a3 {[%clk 0:02:16.1]} 12... Nd7 {[%clk
0:02:49]} 13. b4 {[%clk 0:02:14.1]} 13... axb4 {[%clk 0:02:48.3]} 14. axb4
{[%clk 0:02:15]} 14... f5 {[%clk 0:02:47.6]} 15. Bg2 {[%clk 0:02:13.9]} 15... h6
{[%clk 0:02:43.3]} 16. e3 {[%clk 0:02:10.6]} 16... g5 {[%clk 0:02:40.7]} 17. e4
{[%clk 0:02:08.2]} 17... f4 {[%clk 0:02:40.1]} 18. Bf3 {[%clk 0:02:07.6]} 18...
Nf6 {[%clk 0:02:36.4]} 19. Bg4 {[%clk 0:02:06.5]} 19... Nxg4 {[%clk 0:02:29.1]}
20. Qxg4 {[%clk 0:02:07.4]} 20... Qe8 {[%clk 0:02:25.8]} 21. Bd2 {[%clk
0:01:56.6]} 21... Qg6 {[%clk 0:02:06]} 22. Nb5 {[%clk 0:01:38.6]} 22... Ra2
{[%clk 0:01:23.9]} 23. Rbd1 {[%clk 0:01:36.9]} 23... h5 {[%clk 0:01:15.8]} 24.
Qd7 {[%clk 0:01:35.9]} 24... Rf7 {[%clk 0:01:11.2]} 25. Nxc7 {[%clk 0:01:29.7]}
25... Qxe4 {[%clk 0:00:50.5]} 26. Qe8+ {[%clk 0:01:20]} 26... Bf8 {[%clk
0:00:49.7]} 27. Ne6 {[%clk 0:01:13.6]} 27... fxg3 {[%clk 0:00:39.2]} 28. Qxf7+
{[%clk 0:01:11.3]} 28... Kxf7 {[%clk 0:00:28]} 29. Nxg5+ {[%clk 0:01:11.1]}
29... Kg6 {[%clk 0:00:28.9]} 30. Nxe4 {[%clk 0:01:11.9]} 30... Nf5 {[%clk
0:00:23.5]} 31. fxg3 {[%clk 0:00:59.1]} 31... Be7 {[%clk 0:00:20.6]} 32. Rf2
{[%clk 0:00:57.6]} 32... Nd4 {[%clk 0:00:20.6]} 33. Be3 {[%clk 0:00:56.4]} 33...
Ne2+ {[%clk 0:00:18.5]} 34. Kf1 {[%clk 0:00:54.4]} 34... Nxg3+ {[%clk
0:00:17.8]} 35. Nxg3 {[%clk 0:00:55.3]} 1-0

[Event "Early-Titled-Tuesday-Blitz-July-09-2024"]
[Site "Chess.com"]
[Date "2024.07.09"]
[Round "10"]
[White "Zheenbekov86"]
[Black "ilovejokes555"]
[Result "1-0"]
[WhiteElo "2480"]
[BlackElo "2345"]
[TimeControl "180+1"]
[EndTime "9:55:51 PDT"]
[Termination "Zheenbekov86 won by resignation"]

1. e4 {[%clk 0:03:00.9]} 1... c5 {[%clk 0:02:59.5]} 2. Nf3 {[%clk 0:03:00.2]}
2... d6 {[%clk 0:02:59.4]} 3. Bb5+ {[%clk 0:02:59.8]} 3... Nd7 {[%clk
0:02:58.5]} 4. a4 {[%clk 0:02:58.6]} 4... a6 {[%clk 0:02:58.4]} 5. Bc4 {[%clk
0:02:54.7]} 5... e6 {[%clk 0:02:58.4]} 6. O-O {[%clk 0:02:54]} 6... Ngf6 {[%clk
0:02:58]} 7. Re1 {[%clk 0:02:53.7]} 7... Be7 {[%clk 0:02:57.9]} 8. c3 {[%clk
0:02:52.8]} 8... Ne5 {[%clk 0:02:56]} 9. Ba2 {[%clk 0:02:49.3]} 9... Nxf3+
{[%clk 0:02:54.8]} 10. Qxf3 {[%clk 0:02:48.5]} 10... O-O {[%clk 0:02:54.1]} 11.
d3 {[%clk 0:02:48.5]} 11... b5 {[%clk 0:02:48.5]} 12. Nd2 {[%clk 0:02:44.9]}
12... Bb7 {[%clk 0:02:46.9]} 13. Qe2 {[%clk 0:02:42.3]} 13... b4 {[%clk
0:02:44.7]} 14. cxb4 {[%clk 0:02:31.5]} 14... cxb4 {[%clk 0:02:44.9]} 15. Nc4
{[%clk 0:02:30.2]} 15... d5 {[%clk 0:02:44.1]} 16. exd5 {[%clk 0:02:20.2]} 16...
Nxd5 {[%clk 0:02:43.7]} 17. Ne5 {[%clk 0:02:16.1]} 17... Bf6 {[%clk 0:02:39.6]}
18. Bc4 {[%clk 0:02:14.6]} 18... a5 {[%clk 0:02:38]} 19. h3 {[%clk 0:02:09.7]}
19... Rc8 {[%clk 0:02:35.3]} 20. Bd2 {[%clk 0:02:09.1]} 20... Qc7 {[%clk
0:02:30.3]} 21. Rac1 {[%clk 0:02:07.6]} 21... Qxe5 {[%clk 0:02:28.3]} 22. Qxe5
{[%clk 0:02:06.9]} 22... Bxe5 {[%clk 0:02:28.4]} 23. Rxe5 {[%clk 0:02:07.1]}
23... Rc7 {[%clk 0:02:28.4]} 24. b3 {[%clk 0:01:48.4]} 24... Rfc8 {[%clk
0:02:25.8]} 25. Rce1 {[%clk 0:01:48.2]} 25... h6 {[%clk 0:02:21.8]} 26. h4
{[%clk 0:01:44.6]} 26... Rc6 {[%clk 0:02:15.5]} 27. h5 {[%clk 0:01:44.3]} 27...
Rd6 {[%clk 0:02:03.1]} 28. g4 {[%clk 0:01:29.3]} 28... Nf6 {[%clk 0:01:46]} 29.
g5 {[%clk 0:01:24.1]} 29... hxg5 {[%clk 0:01:43.5]} 30. Rxg5 {[%clk 0:01:22.3]}
30... Bd5 {[%clk 0:01:41.1]} 31. Bf4 {[%clk 0:01:20]} 31... Rd7 {[%clk 0:01:39]}
32. Be5 {[%clk 0:01:20]} 32... Kh7 {[%clk 0:01:37.6]} 33. Re3 {[%clk 0:01:07.7]}
33... Bxc4 {[%clk 0:01:23]} 34. dxc4 {[%clk 0:01:07.7]} 34... Ne8 {[%clk
0:01:04.3]} 35. Bg3 {[%clk 0:00:40.3]} 35... Ra8 {[%clk 0:01:03.4]} 36. Ree5
{[%clk 0:00:37.9]} 36... Rda7 {[%clk 0:00:57.5]} 37. Rb5 {[%clk 0:00:37.6]}
37... Nd6 {[%clk 0:00:55.2]} 38. Bxd6 {[%clk 0:00:35.4]} 1-0

[Event "Early-Titled-Tuesday-Blitz-July-09-2024"]
[Site "Chess.com"]
[Date "2024.07.09"]
[Round "10"]
[White "dropstoneDP"]
[Black "Seochesspie"]
[Result "1/2-1/2"]
[WhiteElo "3036"]
[BlackElo "2905"]
[TimeControl "180+1"]
[EndTime "9:55:54 PDT"]
[Termination "Game drawn by repetition"]

1. e4 {[%clk 0:03:00.9]} 1... c5 {[%clk 0:03:00.9]} 2. Nf3 {[%clk 0:02:59.3]}
2... Nc6 {[%clk 0:03:00.3]} 3. Bb5 {[%clk 0:02:57.1]} 3... g6 {[%clk 0:02:59.6]}
4. O-O {[%clk 0:02:55.8]} 4... Bg7 {[%clk 0:02:59.5]} 5. Re1 {[%clk 0:02:55.3]}
5... Nf6 {[%clk 0:02:56.7]} 6. Bxc6 {[%clk 0:02:53.1]} 6... dxc6 {[%clk
0:02:54.8]} 7. d3 {[%clk 0:02:52.7]} 7... Nd7 {[%clk 0:02:54.3]} 8. e5 {[%clk
0:02:51.7]} 8... Nf8 {[%clk 0:02:53.8]} 9. h3 {[%clk 0:02:48.7]} 9... Ne6 {[%clk
0:02:52.7]} 10. Nc3 {[%clk 0:02:48.9]} 10... b6 {[%clk 0:02:52]} 11. a4 {[%clk
0:02:47.9]} 11... O-O {[%clk 0:02:50.3]} 12. Ne4 {[%clk 0:02:47.3]} 12... Nd4
{[%clk 0:02:48]} 13. Nxd4 {[%clk 0:02:44.2]} 13... cxd4 {[%clk 0:02:48.1]} 14.
Bf4 {[%clk 0:02:43.3]} 14... c5 {[%clk 0:02:38]} 15. Qd2 {[%clk 0:02:43]} 15...
Qd5 {[%clk 0:02:35.8]} 16. Bh6 {[%clk 0:02:39.9]} 16... Qxe5 {[%clk 0:02:29.3]}
17. Ng3 {[%clk 0:02:36.7]} 17... Qd6 {[%clk 0:02:12.6]} 18. Re4 {[%clk
0:02:22.7]} 18... f6 {[%clk 0:01:48.4]} 19. Bxg7 {[%clk 0:02:11.9]} 19... Kxg7
{[%clk 0:01:48.3]} 20. Rae1 {[%clk 0:02:10.4]} 20... Rf7 {[%clk 0:01:45.3]} 21.
Rh4 {[%clk 0:02:09.1]} 21... Bd7 {[%clk 0:01:31.7]} 22. Qh6+ {[%clk 0:02:05]}
22... Kg8 {[%clk 0:01:31.7]} 23. Ne4 {[%clk 0:01:50.4]} 23... Qe5 {[%clk
0:01:17]} 24. f4 {[%clk 0:01:45.7]} 24... Qd5 {[%clk 0:01:15.3]} 25. b3 {[%clk
0:01:40.1]} 25... Bc6 {[%clk 0:01:05.2]} 26. Rg4 {[%clk 0:01:36.6]} 26... f5
{[%clk 0:00:56.9]} 27. Rg5 {[%clk 0:01:30.5]} 27... Qe6 {[%clk 0:00:52.9]} 28.
Rf1 {[%clk 0:01:08.7]} 28... fxe4 {[%clk 0:00:41.3]} 29. f5 {[%clk 0:01:09.6]}
29... Qf6 {[%clk 0:00:41.4]} 30. fxg6 {[%clk 0:01:03.8]} 30... Qxf1+ {[%clk
0:00:41.1]} 31. Kh2 {[%clk 0:01:04.3]} 31... Qf4+ {[%clk 0:00:31.5]} 32. Kh1
{[%clk 0:01:04.2]} 32... Qc1+ {[%clk 0:00:15.4]} 33. Kh2 {[%clk 0:01:03.8]}
33... Qf4+ {[%clk 0:00:14.8]} 34. Kh1 {[%clk 0:01:03.8]} 34... Qf1+ {[%clk
0:00:13.2]} 35. Kh2 {[%clk 0:01:03.4]} 35... Qf4+ {[%clk 0:00:12.3]} 1/2-1/2